bitfinex/quotes_SOLUSD_20230101
["timestamp","ask_amount","ask_price","bid_price","bid_amount"]
[1672602301986,20.0,10.004,9.9963,40.0]
[1672602302836,20.0,10.004,9.9965,40.0]
[1672602303367,20.0,10.004,9.9964,75.11]
[1672602303560,20.0,10.004,9.9954,75.11]
[1672602303771,20.0,10.004,9.9955,40.0]
[1672602304095,20.0,10.004,9.9957,40.0]
[1672602304301,20.0,10.004,9.9959,40.0]
[1672602304504,20.0,10.004,9.996,75.11]
[1672602304720,20.0,10.004,9.9961,40.0]
[1672602304932,20.0,10.004,9.9963,40.0]
[1672602307031,20.0,10.004,9.9964,75.11]
[1672602308822,20.0,10.004,9.9963,40.0]
[1672602309153,20.0,10.004,9.9965,40.0]
[1672602309462,20.0,10.004,9.9967,40.0]
[1672602309866,20.0,10.004,9.9969,40.0]
[1672602310079,20.0,10.004,9.997,75.1]
[1672602310286,20.0,10.004,9.9971,40.0]
[1672602310509,20.0,10.004,9.9973,40.0]
[1672602310706,20.0,10.004,9.9974,75.1]
[1672602310916,20.0,10.004,9.9972,75.1]
[1672602311348,20.0,10.004,9.9973,40.0]
[1672602311561,20.0,10.004,9.9974,75.1]
[1672602313354,20.0,10.004,9.9975,40.0]
[1672602313556,20.0,10.004,9.9976,75.1]
[1672602313768,20.0,10.004,9.9977,40.0]
[1672602313983,20.0,10.004,9.9979,40.0]
[1672602314384,20.0,10.004,9.9981,40.0]
[1672602314597,20.0,10.004,9.9982,75.09]
[1672602314805,20.0,10.004,9.9981,40.0]
[1672602316602,20.0,10.004,9.9982,75.09]
[1672602316817,20.0,10.004,9.9983,40.0]
[1672602317025,20.0,10.004,9.9985,40.0]
[1672602317228,20.0,10.004,9.9986,75.09]
[1672602317438,20.0,10.004,9.9985,40.0]
[1672602317652,20.0,10.004,9.9984,75.09]
[1672602317861,20.0,10.004,9.9965,40.0]
[1672602318073,20.0,10.004,9.9967,40.0]
[1672602318281,20.0,10.004,9.9968,75.1]
[1672602318501,20.0,10.004,9.9969,40.0]
[1672602318698,20.0,10.004,9.9971,40.0]
[1672602318909,20.0,10.004,9.9973,40.0]
[1672602319242,20.0,10.004,9.9974,75.1]
[1672602319454,20.0,10.004,9.9975,40.0]
[1672602319652,20.0,10.005,9.9976,75.1]
[1672602319972,20.0,10.005,9.9977,40.0]
[1672602322793,20.0,10.005,9.9979,40.0]
[1672602323013,20.0,10.005,9.998,75.1]
[1672602323224,20.0,10.005,9.9973,40.0]
[1672602323225,20.0,10.005,9.9976,75.1]
[1672602323423,20.0,10.005,9.9973,40.0]
[1672602323637,20.0,10.005,9.9975,40.0]
[1672602323967,20.0,10.005,9.9976,75.1]
[1672602324382,137.75471403,10.005,9.9968,75.1]
[1672602324597,40.0,10.004,9.9962,75.11]
[1672602325005,40.0,10.004,9.9963,40.0]
[1672602325315,40.0,10.004,9.9964,75.11]
[1672602325861,40.0,10.004,9.9965,40.0]
[1672602326177,40.0,10.004,9.9967,40.0]
[1672602326367,40.0,10.004,9.9968,75.1]
[1672602326796,40.0,10.004,9.9969,40.0]
[1672602327006,40.0,10.004,9.997,75.1]
[1672602327428,40.0,10.004,9.9962,40.0]
[1672602327632,40.0,10.004,9.9963,75.11]
[1672602328598,40.0,10.004,9.9964,40.0]
[1672602328788,40.0,10.004,9.9965,75.11]
[1672602330049,40.0,10.004,9.9966,40.0]
[1672602330468,40.0,10.004,9.9967,75.11]
[1672602331329,40.0,10.004,9.9968,40.0]
[1672602331539,40.0,10.004,9.9969,75.1]
[1672602331751,40.0,10.004,9.9966,40.0]
[1672602333723,40.0,10.004,9.9965,75.11]
[1672602333937,197.06475385,10.004,9.9965,75.11]
[1672602334143,197.06475385,10.004,9.983,709.89650027]
[1672602334144,249.95265037,10.004,9.9946,75.12]
[1672602334368,249.95265037,10.004,9.9951,75.12]
[1672602334591,249.95265037,10.004,9.9944,75.12]
[1672602335723,249.95265037,10.004,9.9951,75.12]
[1672602341203,249.95265037,10.004,9.9941,40.0]
[1672602341406,249.95265037,10.004,9.9942,75.12]
[1672602341623,249.95265037,10.004,9.9951,75.12]
[1672602341945,249.95265037,10.004,9.9942,75.12]
[1672602342472,249.95265037,10.004,9.9907,40.0]
[1672602342473,249.95265037,10.004,9.9938,75.13]
[1672602343217,249.95265037,10.004,9.9923,40.0]
[1672602343431,249.95265037,10.004,9.9924,75.14]
[1672602343621,249.95265037,10.004,9.9951,98.5232]
[1672602343946,40.0,10.002,9.9951,23.4032]
[1672602344349,249.95265037,10.002,9.9951,23.4032]
[1672602352771,249.95265037,10.002,9.9952,75.12]
[1672602354469,249.95265037,10.002,9.9951,23.4032]
[1672602357916,209.95265037,10.002,9.9951,23.4032]
[1672602358347,209.95265037,10.002,9.996,113.7497]
[1672602360124,40.0,10.001,9.996,113.7497]
[1672602360966,209.95265037,10.002,9.996,113.7497]
[1672602366535,40.0,10.001,9.996,113.7497]
[1672602368032,209.95265037,10.002,9.996,113.7497]
[1672602371899,40.0,10.001,9.996,113.7497]
[1672602373069,209.95265037,10.002,9.996,113.7497]
[1672602373277,40.0,10.003,9.996,113.7497]
[1672602374115,40.0,10.004,9.996,113.7497]
[1672602374646,197.06475385,10.004,9.996,113.7497]
[1672602380333,96.31599652,10.005,9.9961,40.0]
[1672602380647,96.31599652,10.005,9.9963,40.0]
[1672602380648,43.4281,10.005,9.9963,40.0]
[1672602380839,43.4281,10.005,9.9965,40.0]
[1672602381049,121.18281403,10.005,9.9966,75.11]
[1672602381259,121.18281403,10.005,9.9967,40.0]
[1672602381579,121.18281403,10.005,9.9969,40.0]
[1672602381788,121.18281403,10.005,9.9971,40.0]
[1672602382104,121.18281403,10.005,9.9973,40.0]
[1672602383574,121.18281403,10.005,9.9975,40.0]
[1672602385054,121.18281403,10.005,9.9973,40.0]
[1672602385789,121.18281403,10.005,9.9975,40.0]
[1672602391672,121.18281403,10.005,9.9973,40.0]
[1672602392845,121.18281403,10.005,9.9968,75.1]
[1672602393053,121.18281403,10.005,9.9952,75.12]
[1672602393268,121.18281403,10.005,9.9962,75.11]
[1672602394312,121.18281403,10.005,9.9961,115.11]
[1672602395562,121.18281403,10.005,9.9961,40.0]
[1672602396307,121.18281403,10.005,9.9952,75.12]
[1672602397028,121.18281403,10.005,9.9961,40.0]
[1672602398604,121.18281403,10.005,9.9961,115.11]
[1672602398814,121.18281403,10.005,9.9961,40.0]
[1672602399565,121.18281403,10.005,9.9952,75.12]
[1672602399885,115.05,10.004,9.9952,75.12]
[1672602400071,40.0,10.004,9.9952,75.12]
[1672602400284,64.9817,10.004,9.9952,75.12]
[1672602411105,64.9817,10.004,9.9961,75.11]
[1672602416059,64.9817,10.004,9.996,113.2497]
[1672602416398,75.06,10.003,9.996,0.0097]
[1672602416606,40.0,10.001,9.9831,40.0]
[1672602416916,40.0,9.9999,9.9831,40.0]
[1672602417117,75.08,9.9998,9.9872,40.0]
[1672602417445,40.0,9.9997,9.9874,40.0]
[1672602417645,75.08,9.9996,9.9875,75.17]
[1672602417859,56.45618507,9.9998,9.9876,40.0]
[1672602418072,56.45618507,9.9998,9.9878,40.0]
[1672602418278,40.0,9.9999,9.9879,75.17]
[1672602418596,40.0,9.9999,9.988,40.0]
[1672602418788,40.0,9.9999,9.9881,75.17]
[1672602419005,40.0,9.9999,9.9882,40.0]
[1672602419226,40.0,9.9999,9.9883,75.17]
[1672602419440,40.0,9.9999,9.9884,40.0]
[1672602419650,40.0,10.0,9.9886,40.0]
[1672602419861,40.0,10.0,9.9888,40.0]
[1672602420059,40.0,10.0,9.9889,75.16]
[1672602420691,40.0,10.0,9.989,40.0]
[1672602420914,40.0,10.0,9.9892,40.0]
[1672602421121,115.08,10.0,9.9893,75.16]
[1672602421328,115.08,10.0,9.9894,40.0]
[1672602421654,40.0,10.0,9.9896,40.0]
[1672602421842,40.0,10.0,9.9898,40.0]
[1672602422053,40.0,10.0,9.9899,75.16]
[1672602422379,40.0,10.0,9.99,40.0]
[1672602422619,40.0,10.0,9.9901,75.15]
[1672602422797,40.0,10.0,9.9902,40.0]
[1672602423001,40.0,10.0,9.9904,40.0]
[1672602423206,40.0,10.0,9.9905,75.15]
[1672602423644,40.0,10.0,9.9901,40.0]
[1672602423845,40.0,10.0,9.9902,75.15]
[1672602424058,40.0,10.0,9.9903,40.0]
[1672602424259,40.0,10.0,9.9905,40.0]
[1672602424469,75.07,10.001,9.9907,40.0]
[1672602424681,115.07,10.002,9.9908,75.15]
[1672602424889,115.07,10.002,9.9909,40.0]
[1672602425202,115.07,10.002,9.9911,40.0]
[1672602425425,115.07,10.002,9.9912,75.15]
[1672602425639,115.07,10.002,9.9913,40.0]
[1672602425836,115.07,10.002,9.9915,40.0]
[1672602426052,115.07,10.002,9.9916,75.14]
[1672602426252,115.07,10.002,9.9917,40.0]
[1672602426464,115.07,10.002,9.9918,75.14]
[1672602426795,115.07,10.002,9.9915,99.002]
[1672602428149,115.07,10.002,9.9915,23.862]
[1672602431715,171.73990507,10.002,9.9915,23.862]
[1672602432355,131.73990507,10.002,9.9915,23.862]
[1672602432568,56.66990507,10.002,9.9917,40.0]
[1672602432775,56.66990507,10.002,9.9919,40.0]
[1672602432998,56.66990507,10.002,9.992,75.14]
[1672602433215,56.66990507,10.002,9.9921,40.0]
[1672602433400,56.66990507,10.002,9.9923,40.0]
[1672602433615,56.66990507,10.002,9.9924,75.14]
[1672602433817,56.66990507,10.002,9.9925,40.0]
[1672602434142,56.66990507,10.002,9.9926,75.14]
[1672602434358,56.66990507,10.002,9.9924,75.14]
[1672602434550,75.07,10.001,9.9922,40.0]
[1672602434761,131.73990507,10.002,9.9923,75.14]
[1672602435317,131.73990507,10.002,9.9924,40.0]
[1672602435503,131.73990507,10.002,9.9926,40.0]
[1672602437412,131.73990507,10.002,9.9928,40.0]
[1672602437602,131.73990507,10.002,9.993,40.0]
[1672602438756,131.73990507,10.002,9.9929,75.13]
[1672602438965,131.73990507,10.002,9.9928,40.0]
[1672602439194,131.73990507,10.002,9.9929,75.13]
[1672602439381,131.73990507,10.002,9.993,40.0]
[1672602440029,131.73990507,10.002,9.9929,75.13]
[1672602440353,131.73990507,10.002,9.9927,75.14]
[1672602441414,131.73990507,10.002,9.9928,40.0]
[1672602441605,131.73990507,10.002,9.9929,75.13]
[1672602442973,131.73990507,10.002,9.9925,75.14]
[1672602443726,131.73990507,10.002,9.9924,40.0]
[1672602443936,131.73990507,10.002,9.9926,40.0]
[1672602444762,131.73990507,10.002,9.9923,75.14]
[1672602444972,131.73990507,10.002,9.9915,75.14]
[1672602445302,131.73990507,10.002,9.9921,75.14]
[1672602446038,40.0,10.001,9.9921,75.14]
[1672602446443,40.0,9.9999,9.9914,115.1761]
[1672602446643,75.08,9.9998,9.9914,115.1761]
[1672602446859,40.0,9.9997,9.9914,115.1761]
[1672602447068,40.0,9.9995,9.9914,115.1761]
[1672602447283,40.0,9.9993,9.9914,115.1761]
[1672602447504,75.09,9.9992,9.9914,115.1761]
[1672602447703,40.0,9.9991,9.9914,115.1761]
[1672602447909,75.09,9.999,9.9914,115.1761]
[1672602448228,40.0,9.9989,9.9914,115.1761]
[1672602448441,75.09,9.9988,9.9914,115.1761]
[1672602448663,40.0,9.9987,9.9914,115.1761]
[1672602448860,75.09,9.9986,9.9914,115.1761]
[1672602449071,40.0,9.9985,9.9914,115.1761]
[1672602449398,40.0,9.9983,9.9914,115.1761]
[1672602450538,40.0,9.9981,9.9914,115.1761]
[1672602450862,75.1,9.998,9.9914,115.1761]
[1672602451064,40.0,9.9979,9.9914,115.1761]
[1672602451480,75.1,9.9978,9.986,75.19]
[1672602451686,20.0,9.997,9.9814,40.0]
[1672602451906,40.0,9.9968,9.9815,75.22]
[1672602452117,20.0,9.996,9.9816,40.0]
[1672602452326,40.0,9.9958,9.9818,40.0]
[1672602452552,40.0,9.9949,9.9819,75.22]
[1672602452752,20.0,9.994,9.982,40.0]
[1672602452951,20.0,9.994,9.9822,40.0]
[1672602453162,20.0,9.994,9.9823,75.21]
[1672602453389,20.0,9.994,9.9824,40.0]
[1672602453595,20.0,9.994,9.9825,75.21]
[1672602453804,40.0,9.9939,9.9825,75.21]
[1672602454025,40.0,9.9937,9.9825,75.21]
[1672602454210,75.13,9.9936,9.9826,22.8987]
[1672602454543,174.4246191,9.9935,9.9826,22.8987]
[1672602454755,75.13,9.9934,9.9682,74.71550565]
[1672602454965,40.0,9.9929,9.9774,40.0]
[1672602455289,40.0,9.9919,9.9774,40.0]
[1672602455595,40.0,9.9909,9.971,40.0]
[1672602455801,40.0,9.9899,9.9712,40.0]
[1672602456016,20.0,9.989,9.9713,213.4867]
[1672602456217,75.16,9.9889,9.9713,213.4867]
[1672602456421,20.0,9.988,9.9714,40.0]
[1672602456631,40.0,9.9878,9.9716,40.0]
[1672602456853,20.0,9.987,9.9717,75.29]
[1672602457057,115.18,9.9869,9.9718,178.1867]
[1672602457263,20.0,9.986,9.972,40.0]
[1672602457469,75.19,9.9859,9.9721,75.29]
[1672602457678,40.0,9.9858,9.9722,40.0]
[1672602458014,40.0,9.9856,9.9724,40.0]
[1672602458207,95.19,9.9855,9.9726,40.0]
[1672602458421,40.0,9.9854,9.9727,75.29]
[1672602458648,40.0,9.9852,9.9728,40.0]
[1672602458852,40.0,9.9852,9.973,40.0]
[1672602458853,95.19,9.9851,9.973,40.0]
[1672602459165,40.0,9.985,9.9732,40.0]
[1672602459370,95.19,9.9849,9.9733,75.28]
[1672602459570,40.0,9.9848,9.9734,40.0]
[1672602459777,20.0,9.9847,9.9736,40.0]
[1672602459991,20.0,9.9847,9.9738,40.0]
[1672602460220,20.0,9.9847,9.9739,75.28]
[1672602460534,20.0,9.9847,9.974,40.0]
[1672602460743,20.0,9.9847,9.9742,40.0]
[1672602460938,20.0,9.9853,9.9744,40.0]
[1672602461156,20.0,9.9853,9.9745,75.27]
[1672602461358,20.0,9.9853,9.9746,40.0]
[1672602461573,40.0,9.9852,9.9748,40.0]
[1672602461792,20.0,9.9851,9.9749,75.27]
[1672602462004,20.0,9.9851,9.975,40.0]
[1672602462315,20.0,9.9851,9.9752,40.0]
[1672602462534,40.0,9.985,9.9754,40.0]
[1672602462724,20.0,9.9849,9.9756,40.0]
[1672602463050,20.0,9.9851,9.9758,40.0]
[1672602463260,20.0,9.9853,9.9759,75.26]
[1672602463471,20.0,9.9867,9.976,40.0]
[1672602463683,40.0,9.9866,9.9762,40.0]
[1672602463892,95.18,9.9865,9.9763,75.26]
[1672602464099,95.18,9.9865,9.9764,40.0]
[1672602464313,95.18,9.9865,9.9766,40.0]
[1672602464524,95.18,9.9865,9.9767,75.26]
[1672602464723,74.92451793,10.008,9.9778,298.7]
[1672602464934,897.21796368,10.012,9.9779,118.8103]
[1672602465143,13.73079134,9.996,9.978,63.9616]
[1672602465359,75.11,9.9959,9.9781,119.2116]
[1672602465566,75.11,9.9959,9.9782,40.0]
[1672602465763,75.11,9.9959,9.9784,40.0]
[1672602465983,75.11,9.9959,9.9785,75.24]
[1672602466196,20.0,9.9958,9.9786,40.0]
[1672602466424,75.11,9.9957,9.9787,75.24]
[1672602466618,20.0,9.9956,9.9788,40.0]
[1672602466827,75.11,9.9955,9.979,40.0]
[1672602467038,75.11,9.9955,9.9792,40.0]
[1672602467239,75.11,9.9955,9.9793,75.24]
[1672602467449,20.0,9.9954,9.9794,40.0]
[1672602467680,75.12,9.9953,9.9796,40.0]
[1672602467869,20.0,9.9952,9.9798,40.0]
[1672602468086,75.12,9.9951,9.9799,75.23]
[1672602468290,20.0,9.995,9.98,40.0]
[1672602468622,75.12,9.9949,9.9802,40.0]
[1672602468824,20.0,9.9948,9.9804,40.0]
[1672602469038,20.0,9.9948,9.9805,75.23]
[1672602469259,20.0,9.9948,9.9806,40.0]
[1672602469468,40.0,9.9954,9.9808,40.0]
[1672602469666,95.12,9.9953,9.981,40.0]
[1672602469868,40.0,9.9952,9.9811,75.22]
[1672602470076,40.0,9.995,9.9812,40.0]
[1672602470295,95.12,9.9949,9.9814,40.0]
[1672602470614,40.0,9.9948,9.9816,40.0]
[1672602470827,40.0,9.9946,9.9818,40.0]
[1672602471044,75.12,9.9945,9.9819,75.22]
[1672602471233,60.0,9.9944,9.982,40.0]
[1672602471444,60.0,9.9944,9.9822,40.0]
[1672602471445,40.0,9.9942,9.9822,40.0]
[1672602471668,95.12,9.9941,9.9824,40.0]
[1672602471875,95.12,9.9941,9.9825,75.21]
[1672602472077,95.12,9.9941,9.9826,40.0]
[1672602472407,95.12,9.9941,9.9828,40.0]
[1672602472744,40.0,9.994,9.983,40.0]
[1672602472947,20.0,9.9939,9.9832,40.0]
[1672602473166,20.0,9.9939,9.9833,75.21]
[1672602473374,20.0,9.9939,9.9834,40.0]
[1672602473569,20.0,9.9939,9.9836,40.0]
[1672602473774,20.0,9.9939,9.9837,75.2]
[1672602473995,20.0,9.9942,9.9838,40.0]
[1672602474220,75.12,9.9941,9.984,40.0]
[1672602474410,20.0,9.994,9.9841,75.2]
[1672602474835,20.0,9.994,9.984,40.0]
[1672602475049,20.0,9.9942,9.9842,40.0]
[1672602475253,20.0,9.9942,9.9843,75.2]
[1672602475465,20.0,9.9942,9.9844,40.0]
[1672602475796,20.0,9.9942,9.9846,40.0]
[1672602475985,20.0,9.9942,9.9847,75.2]
[1672602476316,20.0,9.9942,9.9848,40.0]
[1672602476529,20.0,9.9942,9.9849,75.19]
[1672602476719,20.0,9.9942,9.985,40.0]
[1672602477144,20.0,9.9942,9.9851,75.19]
[1672602477358,20.0,9.9943,9.9851,75.19]
[1672602477564,20.0,9.9943,9.9852,40.0]
[1672602477981,47.2131,9.9942,9.9851,75.19]
[1672602478189,20.0,9.9941,9.9851,75.19]
[1672602478396,20.0,9.9941,9.9852,40.0]
[1672602478619,47.2131,9.994,9.9852,40.0]
[1672602478826,20.0,9.9939,9.9852,40.0]
[1672602479233,23.5384,9.9938,9.9852,40.0]
[1672602479451,23.5384,9.9938,9.9851,75.19]
[1672602479665,23.5384,9.9938,9.9852,40.0]
[1672602479892,23.5384,9.9937,9.9854,40.0]
[1672602480084,23.5384,9.9937,9.9856,40.0]
[1672602480295,23.5384,9.9937,9.9857,75.19]
[1672602480506,23.5384,9.9936,9.9857,75.19]
[1672602481153,24.2354,9.9935,9.9857,75.19]
[1672602481672,24.2354,9.9934,9.9852,40.0]
[1672602482286,24.2354,9.9933,9.9852,40.0]
[1672602482497,24.2354,9.9933,9.9848,40.0]
[1672602483034,24.2354,9.9932,9.9848,40.0]
[1672602483668,24.2354,9.9931,9.9848,40.0]
[1672602484086,23.4742,9.993,9.9848,40.0]
[1672602484609,23.4742,9.9929,9.9848,40.0]
[1672602485459,23.4742,9.9928,9.9848,40.0]
[1672602486086,23.4742,9.9927,9.9848,40.0]
[1672602486296,23.4742,9.9927,9.9849,75.19]
[1672602486693,23.4742,9.9926,9.9848,40.0]
[1672602486917,23.4742,9.9926,9.985,40.0]
[1672602487235,23.4742,9.9926,9.9852,40.0]
[1672602487430,22.6074,9.9925,9.9854,40.0]
[1672602487640,22.6074,9.9925,9.9855,75.19]
[1672602487872,22.6074,9.9925,9.9856,40.0]
[1672602489967,22.6074,9.9925,9.9855,75.19]
[1672602490186,22.6074,9.9925,9.9856,40.0]
[1672602493120,22.6074,9.9925,9.9853,40.0]
[1672602493532,22.6074,9.9925,9.9848,40.0]
[1672602493759,24.0139,9.9924,9.985,40.0]
[1672602493947,24.0139,9.9924,9.9851,75.19]
[1672602494367,24.0139,9.9924,9.9852,40.0]
[1672602494697,24.0139,9.9923,9.9851,75.19]
[1672602494915,24.0139,9.9923,9.9852,40.0]
[1672602495231,24.0139,9.9922,9.9852,40.0]
[1672602497437,24.0139,9.9922,9.9851,75.19]
[1672602497624,24.0139,9.9922,9.9852,40.0]
[1672602497846,24.0139,9.9922,9.9853,75.19]
[1672602498062,23.1376,9.9921,9.9842,40.0]
[1672602498277,23.1376,9.992,9.9844,40.0]
[1672602498489,23.1376,9.9919,9.9845,75.2]
[1672602498694,23.1376,9.9918,9.9844,40.0]
[1672602498908,23.1376,9.9918,9.9845,75.2]
[1672602499318,23.1376,9.9917,9.9845,75.2]
[1672602499741,23.1376,9.9917,9.9843,75.2]
[1672602500175,23.2121,9.9916,9.9843,75.2]
[1672602500389,23.2121,9.9916,9.9837,75.2]
[1672602500706,23.2121,9.9916,9.9838,40.0]
[1672602500924,23.2121,9.9915,9.984,40.0]
[1672602501233,23.2121,9.9915,9.9841,75.2]
[1672602501424,23.2121,9.9915,9.9842,40.0]
[1672602501630,23.2121,9.9915,9.9844,40.0]
[1672602501839,23.2121,9.9914,9.9846,40.0]
[1672602502280,23.2121,9.9914,9.9845,75.2]
[1672602502479,23.2121,9.9914,9.9831,75.21]
[1672602502690,23.2121,9.9913,9.983,22.6235]
[1672602502895,40.0,9.9912,9.983,22.6235]
[1672602504058,23.1597,9.9911,9.983,22.6235]
[1672602504912,23.1597,9.991,9.983,22.6235]
[1672602505321,75.15,9.9909,9.983,22.6235]
[1672602505651,40.0,9.9908,9.983,22.6235]
[1672602505842,40.0,9.9906,9.983,22.6235]
[1672602506180,40.0,9.9904,9.983,22.6235]
[1672602506359,75.15,9.9903,9.983,22.6235]
[1672602506574,40.0,9.9902,9.983,22.6235]
[1672602509952,40.0,9.99,9.983,22.6235]
[1672602512358,40.0,9.99,9.9765,75.26]
[1672602512359,95.16,9.9899,9.9765,75.26]
[1672602512565,40.0,9.9898,9.9753,75.27]
[1672602512786,40.0,9.9896,9.9718,40.0]
[1672602512995,95.16,9.9895,9.9719,79.94921192]
[1672602513312,40.0,9.9894,9.972,40.0]
[1672602513528,40.0,9.9892,9.9722,40.0]
[1672602513739,40.0,9.989,9.9724,40.0]
[1672602513924,95.16,9.9889,9.9725,79.94921192]
[1672602514140,40.0,9.9888,9.9726,40.0]
[1672602514350,40.0,9.9886,9.9728,40.0]
[1672602514562,40.0,9.9884,9.973,40.0]
[1672602514772,95.17,9.9883,9.9731,79.93921192]
[1672602514988,40.0,9.9882,9.9732,40.0]
[1672602515200,40.0,9.9882,9.9733,79.93921192]
[1672602515201,95.17,9.9881,9.9733,79.93921192]
[1672602515413,40.0,9.988,9.9734,40.0]
[1672602515622,40.0,9.9878,9.9736,40.0]
[1672602515841,95.17,9.9877,9.9737,79.93921192]
[1672602516037,40.0,9.9876,9.9738,40.0]
[1672602516246,40.0,9.9874,9.974,40.0]
[1672602516451,95.18,9.9873,9.9741,79.93921192]
[1672602516658,40.0,9.9872,9.9742,40.0]
[1672602516872,40.0,9.987,9.9744,40.0]
[1672602517103,95.18,9.9869,9.9745,79.92921192]
[1672602517292,40.0,9.9868,9.9746,40.0]
[1672602517508,95.18,9.9867,9.9747,79.92921192]
[1672602517716,40.0,9.9866,9.9748,40.0]
[1672602517954,40.0,9.9864,9.975,40.0]
[1672602518135,95.18,9.9863,9.9751,75.27]
[1672602518346,40.0,9.9862,9.9752,40.0]
[1672602518556,95.18,9.9861,9.9754,40.0]
[1672602518776,95.18,9.9861,9.9756,40.0]
[1672602518988,95.18,9.9861,9.9757,75.26]
[1672602519201,157.3108,9.986,9.9758,40.0]
[1672602519392,20.0,9.9859,9.9759,75.26]
[1672602519605,20.0,9.9859,9.976,40.0]
[1672602519834,40.0,9.9857,9.9762,40.0]
[1672602520038,20.0,9.9856,9.9763,75.26]
[1672602520459,47.9424,9.9855,9.9763,75.26]
[1672602520674,20.0,9.9854,9.9763,75.26]
[1672602520886,20.0,9.9854,9.9764,40.0]
[1672602521212,24.4217,9.9853,9.9766,40.0]
[1672602521411,20.0,9.9852,9.9768,40.0]
[1672602521619,44.4217,9.9852,9.9769,75.25]
[1672602521824,44.4217,9.9852,9.977,40.0]
[1672602522154,44.4217,9.9852,9.9771,75.25]
[1672602522345,24.4217,9.9851,9.977,40.0]
[1672602522555,20.0,9.985,9.9771,75.25]
[1672602522789,20.0,9.985,9.9772,40.0]
[1672602523000,23.3424,9.9849,9.9774,40.0]
[1672602523295,20.0,9.9848,9.9776,40.0]
[1672602523515,43.3424,9.9848,9.9778,40.0]
[1672602525201,43.3424,9.9848,9.9779,75.25]
[1672602525412,43.3424,9.9848,9.978,40.0]
[1672602527192,74.92451793,10.002,9.9782,40.0]
[1672602527404,142.8775,9.9963,9.9784,40.0]
[1672602527612,142.8775,9.9962,9.9785,75.24]
[1672602527826,217.9875,9.9961,9.9786,60.0]
[1672602528035,217.9875,9.9961,9.9787,75.24]
[1672602528036,142.8775,9.996,9.9787,75.24]
[1672602528245,40.0,9.9958,9.9702,115.3]
[1672602528446,75.11,9.9957,9.9704,40.0]
[1672602528659,40.0,9.9956,9.9707,40.0]
[1672602528874,40.0,9.9954,9.9709,40.0]
[1672602529095,40.0,9.9952,9.971,79.95921192]
[1672602529309,95.12,9.9951,9.9711,40.0]
[1672602529527,40.0,9.995,9.9713,40.0]
[1672602529707,40.0,9.9948,9.9714,79.95921192]
[1672602530039,40.0,9.9946,9.9715,40.0]
[1672602530237,95.12,9.9945,9.9717,40.0]
[1672602530444,40.0,9.9944,9.9718,79.94921192]
[1672602530661,95.12,9.9943,9.9719,40.0]
[1672602530866,40.0,9.9942,9.9721,40.0]
[1672602531075,40.0,9.994,9.9723,40.0]
[1672602531306,95.13,9.9939,9.9724,79.94921192]
[1672602531499,40.0,9.9938,9.9725,40.0]
[1672602531714,40.0,9.9936,9.9727,40.0]
[1672602532030,40.0,9.9934,9.9729,40.0]
[1672602532351,40.0,9.9932,9.9731,40.0]
[1672602532561,40.0,9.993,9.9733,40.0]
[1672602532878,40.0,9.9928,9.9735,40.0]
[1672602533075,75.14,9.9927,9.9736,79.93921192]
[1672602533282,60.0,9.9926,9.9737,40.0]
[1672602533498,40.0,9.9924,9.9739,40.0]
[1672602533704,40.0,9.9922,9.9741,40.0]
[1672602533914,95.14,9.9921,9.9742,79.92921192]
[1672602534122,40.0,9.992,9.9743,40.0]
[1672602534345,40.0,9.9918,9.9745,40.0]